fUSD/lending_fUSD_20240614
["ID","MTS","AMOUNT","RATE_DAILY","PERIOD"]
[329493727,1718392272732,-500.0,0.00022739,3]
[329493728,1718392272749,-500.0,0.00022739,3]
[329493729,1718392272762,-500.0,0.00022739,3]
[329493730,1718392272791,-544.63,0.00022739,3]
[329493731,1718392272813,-500.0,0.00022739,3]
[329493732,1718392272832,-500.0,0.00022739,3]
[329493733,1718392272845,-869.05,0.00022739,3]
[329493734,1718392272864,-500.0,0.00022739,3]
[329493735,1718392272878,-500.0,0.00022739,3]
[329493736,1718392272890,-500.0,0.00022739,3]
[329493737,1718392272901,-500.0,0.00022739,3]
[329493738,1718392272915,-502.28,0.00022739,3]
[329493739,1718392272927,-500.0,0.00022739,3]
[329493740,1718392272938,-500.0,0.00022739,3]
[329493741,1718392272949,-500.0,0.00022739,3]
[329493742,1718392272962,-500.0,0.00022739,3]
[329493743,1718392272973,-500.0,0.00022739,3]
[329493744,1718392272986,-500.0,0.00022739,3]
[329493745,1718392273013,-500.0,0.00022739,3]
[329493746,1718392273026,-662.78,0.00022739,3]
[329493747,1718392273038,-549.96,0.00022739,3]
[329493748,1718392273065,-20070.13,0.00022739,3]
[329493749,1718392273087,-500.0,0.00022739,3]
[329493750,1718392273131,-1313.74,0.00022739,3]
[329493751,1718392273154,-1180.34,0.00022739,3]
[329493752,1718392273195,-1884.7,0.00022739,3]
[329493753,1718392273249,-500.0,0.00022739,3]
[329493754,1718392273264,-500.0,0.00022739,3]
[329493755,1718392273306,-10290.34,0.00022739,3]
[329493756,1718392273322,-780.32,0.00022739,3]
[329493757,1718392273341,-2886.54,0.00022739,3]
[329493758,1718392273360,-2567.21,0.00022739,3]
[329493759,1718392273370,-530.79,0.00022739,3]
[329493760,1718392273382,-500.0,0.00022739,3]
[329493761,1718392273398,-500.0,0.00022739,3]
[329493762,1718392273414,-5939.52,0.00022739,3]
[329493763,1718392273429,-3956.31,0.00022739,3]
[329493764,1718392273446,-726.23,0.00022739,3]
[329493765,1718392273465,-844.82,0.00022739,3]
[329493766,1718392273487,-505.8,0.00022739,3]
[329493767,1718392273498,-500.0,0.00022739,3]
[329493768,1718392273517,-1127.52,0.00022739,3]
[329493769,1718392273530,-500.0,0.00022739,3]
[329493770,1718392273554,-19874.22,0.00022739,3]
[329493771,1718392273570,-6710.8,0.00022739,3]
[329493772,1718392273585,-3145.1,0.00022739,3]
[329493773,1718392273598,-1250.53,0.00022739,3]
[329493774,1718392273609,-840.46,0.00022739,3]
[329493775,1718392273620,-500.0,0.00022739,3]
[329493776,1718392273630,-609.97,0.00022739,3]
[329493777,1718392273640,-500.0,0.00022739,3]
[329493778,1718392273651,-500.0,0.00022739,3]
[329493779,1718392273664,-500.0,0.00022739,3]
[329493780,1718392273682,-500.0,0.00022739,3]
[329493781,1718392273693,-2320.96,0.00022739,3]
[329493782,1718392273703,-941.01,0.00022739,3]
[329493783,1718392273713,-500.0,0.00022739,3]
[329493784,1718392273874,-1990.16,0.00022739,3]
[329493785,1718392273889,-1310.07,0.00022739,3]
[329493786,1718392273905,-1995.44,0.00022739,3]
[329493787,1718392273929,-932.24,0.00022739,3]
[329493788,1718392273942,-500.0,0.00022739,3]
[329493789,1718392273959,-1985.52,0.00022739,3]
[329493790,1718392273972,-500.0,0.00022739,3]
[329493791,1718392273984,-706.17,0.00022739,3]
[329493792,1718392273996,-3553.95,0.00022739,3]
[329493793,1718392274011,-516.98,0.00022739,3]
[329493794,1718392274025,-667.46,0.00022739,3]
[329493795,1718392274048,-798.6,0.00022739,3]
[329493796,1718392274067,-1181.38,0.00022739,3]
[329493797,1718392274090,-1607.82,0.00022739,3]
[329493798,1718392274105,-571.76,0.00022739,3]
[329493799,1718392274117,-1633.94,0.00022739,3]
[329493800,1718392274129,-500.0,0.00022739,3]
[329493801,1718392274165,-5233.58,0.00022739,3]
[329493802,1718392274188,-317.31341503,0.00022739,3]
[329493803,1718392274214,-16066.88,0.00022739,3]
[329493804,1718392274228,-2024.6,0.00022739,3]
[329493805,1718392274246,-1780.74,0.00022739,3]
[329493806,1718392274272,-390.21659952,0.00022739,3]
[329493807,1718392274284,-615.31,0.00022739,3]
[329493808,1718392274296,-686.88,0.00022739,3]
[329493809,1718392274309,-2372.41,0.00022739,3]
[329493810,1718392274321,-500.0,0.00022739,3]
[329493811,1718392274344,-7065.4,0.00022739,3]
[329493812,1718392274361,-504.02,0.00022739,3]
[329493813,1718392274380,-682.34,0.00022739,3]
[329493814,1718392274391,-500.0,0.00022739,3]
[329493815,1718392274408,-500.0,0.00022739,3]
[329493816,1718392274424,-500.0,0.00022739,3]
[329493817,1718392274437,-517.57,0.00022739,3]
[329493818,1718392274452,-1218.8,0.00022739,3]
[329493819,1718392274464,-860.59,0.00022739,3]
[329493820,1718392274476,-1861.02,0.00022739,3]
[329493821,1718392274489,-500.0,0.00022739,3]
[329493822,1718392274510,-500.0,0.00022739,3]
[329493823,1718392274525,-2686.28,0.00022739,3]
[329493824,1718392274544,-1285.78,0.00022739,3]
[329493825,1718392274558,-500.0,0.00022739,3]
[329493826,1718392274569,-959.17,0.00022739,3]
[329493827,1718392274582,-500.0,0.00022739,3]
[329493828,1718392274598,-500.0,0.00022739,3]
[329493829,1718392274627,-724.18,0.00022739,3]
[329493830,1718392274653,-664.41,0.00022739,3]
[329493831,1718392274676,-995.79,0.00022739,3]
[329493832,1718392274690,-500.0,0.00022739,3]
[329493833,1718392274701,-1056.47,0.00022739,3]
[329493834,1718392274714,-7113.76,0.00022739,3]
[329493835,1718392274726,-2812.13,0.00022739,3]
[329493836,1718392274738,-2505.97,0.00022739,3]
[329493837,1718392274750,-1505.05,0.00022739,3]
[329493838,1718392274773,-500.0,0.00022739,3]
[329493839,1718392274785,-1154.85,0.00022739,3]
[329493840,1718392274797,-534.25,0.00022739,3]
[329493841,1718392274810,-547.51,0.00022739,3]
[329493842,1718392274831,-865.97,0.00022739,3]
[329493843,1718392274848,-616.75,0.00022739,3]
[329493844,1718392274859,-630.52,0.00022739,3]
[329493845,1718392274876,-821.45,0.00022739,3]
[329493846,1718392274889,-1395.43,0.00022739,3]
[329493847,1718392274909,-500.0,0.00022739,3]
[329493848,1718392274925,-590.88042267,0.00022739,3]
[329493849,1718392274936,-500.0,0.00022739,3]
[329493850,1718392274948,-597.77,0.00022739,3]
[329493851,1718392274968,-606.16,0.00022739,3]
[329493852,1718392274982,-1875.15,0.00022739,3]
[329493853,1718392274996,-500.0,0.00022739,3]
[329493854,1718392275019,-1090.83,0.00022739,3]
[329493855,1718392275049,-2582.01,0.00022739,3]
[329493856,1718392275080,-500.0,0.00022739,3]
[329493857,1718392275093,-1231.56,0.00022739,3]
[329493858,1718392275111,-548.32,0.00022739,3]
[329493859,1718392275123,-500.0,0.00022739,3]
[329493860,1718392275151,-500.0,0.00022739,3]
[329493861,1718392275166,-504.46,0.00022739,3]
[329493862,1718392275178,-5960.66,0.00022739,3]
[329493863,1718392275190,-519.23,0.00022739,3]
[329493864,1718392275201,-1085.69,0.00022739,3]
[329493865,1718392275213,-500.0,0.00022739,3]
[329493866,1718392275225,-296.39217705,0.00022739,3]
[329493867,1718392275240,-725.89,0.00022739,3]
[329493868,1718392275252,-2443.66,0.00022739,3]
[329493869,1718392275266,-1907.49,0.00022739,3]
[329493870,1718392275278,-6901.16,0.00022739,3]
[329493871,1718392275290,-955.99,0.00022739,3]
[329493872,1718392275311,-4212.24,0.00022739,3]
[329493873,1718392275343,-500.0,0.00022739,3]
[329493874,1718392275368,-1181.94,0.00022739,3]
[329493875,1718392275382,-895.71,0.00022739,3]
[329493876,1718392275393,-500.0,0.00022739,3]
[329493877,1718392275405,-929.86,0.00022739,3]
[329493878,1718392275419,-4264.86,0.00022739,3]
[329493879,1718392275430,-4280.98,0.00022739,3]
[329493880,1718392275448,-1140.5,0.00022739,3]
[329493881,1718392275459,-500.0,0.00022739,3]
[329493882,1718392275472,-1174.2,0.00022739,3]
[329493883,1718392275493,-500.0,0.00022739,3]
[329493884,1718392275516,-679.57,0.00022739,3]
[329493885,1718392275545,-500.0,0.00022739,2]
[329493886,1718392275557,-3115.57,0.00022739,3]
[329493887,1718392275568,-500.0,0.00022739,3]
[329493888,1718392275581,-500.0,0.00022739,3]
[329493889,1718392275594,-1000.0,0.00022829,2]
[329493890,1718392275609,-3338.5617,0.00022913,2]
[329493891,1718392275621,-39360.8957,0.00022913,2]
[329493892,1718392275638,-397.4009,0.00022913,2]
[329493893,1718392275677,-100000.0,0.00022913,2]
[329493894,1718392275696,-111850.4647,0.00022913,2]
[329493895,1718392275714,-1000.0,0.00022913,2]
[329493896,1718392275729,-3292.0354526,0.00022984,2]
[329493897,1718392275742,-5000.0,0.00023,2]
[329493898,1718392275755,-37305.26,0.00023,5]
[329493899,1718392275767,-500.0,0.00023013,3]
[329493900,1718392275784,-575.2,0.00023013,3]
[329493901,1718392275798,-500.0,0.00023013,2]
[329493902,1718392275822,-500.0,0.00023013,3]
[329493903,1718392275840,-500.0,0.00023013,3]
[329493904,1718392275868,-478.56381697,0.00023013,3]
[329493905,1718392275882,-500.0,0.00023013,3]
[329493906,1718392275895,-500.0,0.00023013,3]
[329493907,1718392275916,-500.0,0.00023013,3]
[329493908,1718392275928,-500.0,0.00023013,3]
[329493909,1718392275943,-500.0,0.00023013,3]
[329493910,1718392275959,-500.0,0.00023013,3]
[329493911,1718392275975,-500.0,0.00023013,3]
[329493912,1718392275993,-500.0,0.00023013,3]
[329493913,1718392276019,-500.0,0.00023013,3]
[329493914,1718392276035,-500.0,0.00023013,3]
[329493915,1718392276048,-185.82,0.00023013,3]
[329493916,1718392276076,-500.0,0.00023013,3]
[329493917,1718392276113,-500.0,0.00023013,3]
[329493918,1718392276124,-500.0,0.00023013,3]
[329493919,1718392276136,-500.0,0.00023013,3]
[329493920,1718392276149,-500.0,0.00023013,3]
[329493921,1718392276161,-500.0,0.00023013,3]
[329493922,1718392276172,-500.0,0.00023013,3]
[329493923,1718392276184,-500.0,0.00023013,3]
[329493924,1718392276195,-500.0,0.00023013,3]
[329493925,1718392276207,-500.0,0.00023013,3]
[329493926,1718392276224,-500.0,0.00023013,3]
[329493927,1718392276244,-564.52,0.00023013,3]
[329493928,1718392276273,-500.0,0.00023013,3]
[329493929,1718392276308,-500.0,0.00023013,3]
[329493930,1718392276326,-500.0,0.00023013,3]
[329493931,1718392276349,-500.0,0.00023013,3]
[329493932,1718392276367,-500.0,0.00023013,3]
[329493933,1718392276414,-500.0,0.00023013,3]
[329493934,1718392276429,-553.93,0.00023013,3]
[329493935,1718392276453,-500.0,0.00023013,3]
[329493936,1718392276469,-500.0,0.00023013,3]
[329493937,1718392276490,-500.0,0.00023013,3]
[329493938,1718392276509,-500.0,0.00023013,3]
[329493939,1718392276548,-500.0,0.00023013,3]
[329493940,1718392276568,-500.0,0.00023013,3]
[329493941,1718392276579,-500.0,0.00023013,3]
[329493942,1718392276591,-500.0,0.00023013,3]
[329493943,1718392276603,-500.0,0.00023013,3]
[329493944,1718392276618,-500.0,0.00023013,3]
[329493945,1718392276641,-500.0,0.00023013,3]
[329493946,1718392276657,-500.0,0.00023013,3]
[329493947,1718392276668,-479.32484591,0.00023013,3]
[329493948,1718392276680,-500.0,0.00023013,3]
[329493949,1718392276690,-500.0,0.00023013,3]
[329493950,1718392276701,-500.0,0.00023013,3]
[329493951,1718392276714,-544.63,0.00023013,3]
[329493952,1718392276727,-154.79212087,0.00023013,3]
[329493953,1718392276741,-500.0,0.00023013,3]
[329493954,1718392276752,-869.05,0.00023013,3]
[329493955,1718392276763,-500.0,0.00023013,3]
[329493956,1718392276778,-500.0,0.00023013,3]
[329493957,1718392276790,-500.0,0.00023013,3]
[329493958,1718392276804,-500.0,0.00023013,3]
[329493959,1718392276815,-502.28,0.00023013,3]
[329493960,1718392276830,-500.0,0.00023013,3]
[329493961,1718392276844,-500.0,0.00023013,3]
[329493962,1718392276858,-500.0,0.00023013,3]
[329493963,1718392276871,-500.0,0.00023013,3]
[329493964,1718392276883,-500.0,0.00023013,3]
[329493965,1718392276907,-500.0,0.00023013,3]
[329493966,1718392276934,-291.32417013,0.00023013,3]
[329493967,1718392276946,-662.78,0.00023013,3]
[329493968,1718392276959,-549.96,0.00023013,3]
[329493969,1718392276979,-20070.13,0.00023013,3]
[329493970,1718392276991,-500.0,0.00023013,3]
[329493971,1718392277003,-1313.74,0.00023013,3]
[329493972,1718392277035,-1180.34,0.00023013,3]
[329493973,1718392277082,-1884.7,0.00023013,3]
[329493974,1718392277093,-500.0,0.00023013,3]
[329493975,1718392277110,-500.0,0.00023013,3]
[329493976,1718392277128,-10290.34,0.00023013,3]
[329493977,1718392277139,-780.32,0.00023013,3]
[329493978,1718392277159,-2886.54,0.00023013,3]
[329493979,1718392277182,-2567.21,0.00023013,3]
[329493980,1718392277212,-530.79,0.00023013,3]
[329493981,1718392277224,-500.0,0.00023013,3]
[329493982,1718392277238,-500.0,0.00023013,3]
[329493983,1718392277258,-5939.52,0.00023013,3]
[329493984,1718392277292,-3956.31,0.00023013,3]
[329493985,1718392277305,-726.23,0.00023013,3]
[329493986,1718392277322,-844.82,0.00023013,3]
[329493987,1718392277343,-505.8,0.00023013,3]
[329493988,1718392277389,-604.27687776,0.00023013,3]
[329493989,1718392277403,-1127.52,0.00023013,3]
[329493990,1718392277417,-500.0,0.00023013,3]
[329493991,1718392277432,-19874.22,0.00023013,3]
[329493992,1718392277446,-6710.8,0.00023013,3]
[329493993,1718392277464,-3145.1,0.00023013,3]
[329493994,1718392277475,-1250.53,0.00023013,3]
[329493995,1718392277487,-840.46,0.00023013,3]
[329493996,1718392277500,-500.0,0.00023013,3]
[329493997,1718392277511,-609.97,0.00023013,3]
[329493998,1718392277523,-500.0,0.00023013,3]
[329493999,1718392277542,-500.0,0.00023013,3]
[329494000,1718392277555,-2320.96,0.00023013,3]
[329494001,1718392277569,-941.01,0.00023013,3]
[329494002,1718392277581,-500.0,0.00023013,3]
[329494003,1718392277593,-1990.16,0.00023013,3]
[329494004,1718392277618,-1995.44,0.00023013,3]
[329494005,1718392277632,-1310.07,0.00023013,3]
[329494006,1718392277649,-932.24,0.00023013,3]
[329494007,1718392277668,-500.0,0.00023013,3]
[329494008,1718392277681,-1985.52,0.00023013,3]
[329494009,1718392277701,-500.0,0.00023013,3]
[329494010,1718392277716,-706.17,0.00023013,3]
[329494011,1718392277744,-3553.95,0.00023013,3]
[329494012,1718392277757,-516.98,0.00023013,3]
[329494013,1718392277774,-798.6,0.00023013,3]
[329494014,1718392277785,-1181.38,0.00023013,3]
[329494015,1718392277797,-667.46,0.00023013,3]
[329494016,1718392277819,-1607.82,0.00023013,3]
[329494017,1718392277831,-571.76,0.00023013,3]
[329494018,1718392277846,-1633.94,0.00023013,3]
[329494019,1718392277879,-500.0,0.00023013,3]
[329494020,1718392277910,-5233.58,0.00023013,3]
[329494021,1718392277939,-16066.88,0.00023013,3]
[329494022,1718392277952,-2024.6,0.00023013,3]
[329494023,1718392277976,-1780.74,0.00023013,3]
[329494024,1718392278012,-615.31,0.00023013,3]
[329494025,1718392278031,-686.88,0.00023013,3]
[329494026,1718392278056,-2372.41,0.00023013,3]
[329494027,1718392278068,-208.83964355,0.00023013,3]
[329494028,1718392278081,-7065.4,0.00023013,3]
[329494029,1718392278123,-504.02,0.00023013,3]
[329494030,1718392278152,-682.34,0.00023013,3]
[329494031,1718392278248,-500.0,0.00023013,3]
[329494032,1718392278264,-500.0,0.00023013,3]
[329494033,1718392278304,-500.0,0.00023013,3]
[329494034,1718392278340,-517.57,0.00023013,3]
[329494035,1718392278356,-1218.8,0.00023013,3]
[329494036,1718392278369,-860.59,0.00023013,3]
[329494037,1718392278380,-1861.02,0.00023013,3]
[329494038,1718392278394,-500.0,0.00023013,3]
[329494039,1718392278408,-500.0,0.00023013,3]
[329494040,1718392278419,-2686.28,0.00023013,3]
[329494041,1718392278435,-1285.78,0.00023013,3]
[329494042,1718392278454,-500.0,0.00023013,3]
[329494043,1718392278512,-959.17,0.00023013,3]
[329494044,1718392278527,-500.0,0.00023013,3]
[329494045,1718392278556,-500.0,0.00023013,3]
[329494046,1718392278568,-724.18,0.00023013,3]
[329494047,1718392278581,-664.41,0.00023013,3]
[329494048,1718392278593,-995.79,0.00023013,3]
[329494049,1718392278606,-500.0,0.00023013,3]
[329494050,1718392278618,-1056.47,0.00023013,3]
[329494051,1718392278629,-7113.76,0.00023013,3]
[329494052,1718392278640,-2812.13,0.00023013,3]
[329494053,1718392278652,-1505.05,0.00023013,3]
[329494054,1718392278663,-2505.97,0.00023013,3]
[329494055,1718392278673,-308.62464437,0.00023013,3]
[329494056,1718392278685,-1154.85,0.00023013,3]
[329494057,1718392278695,-534.25,0.00023013,3]
[329494058,1718392278715,-547.51,0.00023013,3]
[329494059,1718392278726,-865.97,0.00023013,3]
[329494060,1718392278741,-616.75,0.00023013,3]
[329494061,1718392278772,-630.52,0.00023013,3]
[329494062,1718392278786,-821.45,0.00023013,3]
[329494063,1718392278800,-1395.43,0.00023013,3]
[329494064,1718392278836,-500.0,0.00023013,3]
[329494065,1718392278849,-597.77,0.00023013,3]
[329494066,1718392278862,-606.16,0.00023013,3]
[329494067,1718392278881,-1875.15,0.00023013,3]
[329494068,1718392278893,-500.0,0.00023013,3]
[329494069,1718392278905,-1090.83,0.00023013,3]
[329494070,1718392278917,-2582.01,0.00023013,3]
[329494071,1718392278950,-500.0,0.00023013,3]
[329494072,1718392278966,-1231.56,0.00023013,3]
[329494073,1718392278979,-548.32,0.00023013,3]
[329494074,1718392278990,-500.0,0.00023013,3]
[329494075,1718392279027,-500.0,0.00023013,3]
[329494076,1718392279100,-504.46,0.00023013,3]
[329494077,1718392279114,-5960.66,0.00023013,3]
[329494078,1718392279127,-519.23,0.00023013,3]
[329494079,1718392279140,-1085.69,0.00023013,3]
[329494080,1718392279154,-500.0,0.00023013,3]
[329494081,1718392279172,-725.89,0.00023013,3]
[329494082,1718392279182,-2443.66,0.00023013,3]
[329494083,1718392279204,-1907.49,0.00023013,3]
[329494084,1718392279216,-6901.16,0.00023013,3]
[329494085,1718392279232,-955.99,0.00023013,3]
[329494086,1718392279246,-4212.24,0.00023013,3]
[329494087,1718392279257,-500.0,0.00023013,3]
[329494088,1718392279285,-1181.94,0.00023013,3]
[329494089,1718392279299,-895.71,0.00023013,3]
[329494090,1718392279317,-500.0,0.00023013,3]
[329494091,1718392279370,-929.86,0.00023013,3]
[329494092,1718392279391,-4280.98,0.00023013,3]
[329494093,1718392279404,-4264.86,0.00023013,3]
[329494094,1718392279424,-1140.5,0.00023013,3]
[329494095,1718392279452,-500.0,0.00023013,3]
[329494096,1718392279463,-1174.2,0.00023013,3]
[329494097,1718392279475,-500.0,0.00023013,3]
[329494098,1718392279486,-679.57,0.00023013,3]
[329494099,1718392279496,-153.0,0.00023013,2]
[329494100,1718392279506,-3115.57,0.00023013,3]
[329494101,1718392279517,-500.0,0.00023013,3]
[329494102,1718392279530,-171.2025191,0.00023187,2]
[329494103,1718392279549,-7343.90698944,0.00023287,2]
[329494104,1718392279573,-26179.53350039,0.00023287,2]
[329494105,1718392279592,-892.49119259,0.00023287,4]
[329494106,1718392279611,-1925.74927853,0.00023287,2]
[329494107,1718392279622,-500.0,0.00023287,3]
[329494108,1718392279661,-575.2,0.00023287,3]
[329494109,1718392279672,-500.0,0.00023287,2]
[329494110,1718392279683,-500.0,0.00023287,3]
[329494111,1718392279702,-500.0,0.00023287,3]
[329494112,1718392279720,-500.0,0.00023287,3]
[329494113,1718392279744,-500.0,0.00023287,3]
[329494114,1718392279762,-500.0,0.00023287,3]
[329494115,1718392279774,-328.77484398,0.00023287,3]
[329494116,1718392279798,-500.0,0.00023287,3]
[329494117,1718392279816,-500.0,0.00023287,3]
[329494118,1718392279828,-314.70883586,0.00023287,3]
[329494119,1718392279840,-500.0,0.00023287,3]
[329494120,1718392279861,-582.67,0.00023287,3]
[329494121,1718392279878,-500.0,0.00023287,3]
[329494122,1718392279890,-163.924323,0.00023287,7]
[329494123,1718392279908,-151.0,0.00023287,7]
[329494124,1718392279927,-500.0,0.00023287,3]
[329494125,1718392279940,-500.0,0.00023287,3]
[329494126,1718392279951,-315.64,0.00023287,3]
[329494127,1718392279971,-500.0,0.00023287,3]
[329494128,1718392279996,-500.0,0.00023287,3]
[329494129,1718392280007,-151.0,0.00023287,7]
[329494130,1718392280018,-500.0,0.00023287,3]
[329494131,1718392280029,-500.0,0.00023287,3]
[329494132,1718392280045,-500.0,0.00023287,3]
[329494133,1718392280057,-500.0,0.00023287,3]
[329494134,1718392280081,-500.0,0.00023287,3]
[329494135,1718392280097,-151.0,0.00023287,7]
[329494136,1718392280112,-564.52,0.00023287,3]
[329494137,1718392280132,-500.0,0.00023287,3]
[329494138,1718392280152,-500.0,0.00023287,3]
[329494139,1718392280163,-500.0,0.00023287,3]
[329494140,1718392280177,-151.0,0.00023287,7]
[329494141,1718392280189,-500.0,0.00023287,3]
[329494142,1718392280201,-500.0,0.00023287,3]
[329494143,1718392280212,-553.93,0.00023287,3]
[329494144,1718392280229,-500.0,0.00023287,3]
[329494145,1718392280247,-500.0,0.00023287,3]
[329494146,1718392280265,-500.0,0.00023287,3]
[329494147,1718392280297,-500.0,0.00023287,3]
[329494148,1718392280309,-396.32678129,0.00023287,3]
[329494149,1718392280322,-491.77875286,0.00023287,3]
[329494150,1718392280336,-500.0,0.00023287,3]
[329494151,1718392280357,-500.0,0.00023287,3]
[329494152,1718392280376,-500.0,0.00023287,3]
[329494153,1718392280392,-500.0,0.00023287,3]
[329494154,1718392280405,-500.0,0.00023287,3]
[329494155,1718392280416,-155.505113,0.00023287,7]
[329494156,1718392280428,-151.0,0.00023287,7]
[329494157,1718392280439,-387.96446606,0.00023287,3]
[329494158,1718392280451,-500.0,0.00023287,3]
[329494159,1718392280470,-151.0,0.00023287,7]
[329494160,1718392280502,-500.0,0.00023287,3]
[329494161,1718392280516,-500.0,0.00023287,3]
[329494162,1718392280532,-544.63,0.00023287,3]
[329494163,1718392280545,-500.0,0.00023287,3]
[329494164,1718392280556,-869.05,0.00023287,3]
[329494165,1718392280573,-500.0,0.00023287,3]
[329494166,1718392280590,-151.0,0.00023287,7]
[329494167,1718392280603,-500.0,0.00023287,3]
[329494168,1718392280617,-270.39915688,0.00023287,3]
[329494169,1718392280634,-500.0,0.00023287,3]
[329494170,1718392280659,-151.0,0.00023287,7]
[329494171,1718392280672,-502.28,0.00023287,3]
[329494172,1718392280683,-500.0,0.00023287,3]
[329494173,1718392280700,-500.0,0.00023287,3]
[329494174,1718392280714,-500.0,0.00023287,3]
[329494175,1718392280727,-500.0,0.00023287,3]
[329494176,1718392280739,-500.0,0.00023287,3]
[329494177,1718392280750,-500.0,0.00023287,3]
[329494178,1718392280762,-662.78,0.00023287,3]
[329494179,1718392280772,-549.96,0.00023287,3]
[329494180,1718392280788,-10176.18445702,0.00023287,3]
[329494181,1718392282349,-1673.90953421,0.00021914,2]
[329494182,1718392282370,-308.43455555,0.00021914,2]
[329494183,1718392282385,-824.91667545,0.00021914,2]
[329494184,1718392282401,-1123.29770028,0.00021914,2]
[329494185,1718392282412,-1227.53,0.00022191,3]
[329494186,1718392282422,-500.0,0.00022191,3]
[329494187,1718392282433,-500.0,0.00022465,3]
[329494188,1718392282448,-500.0,0.00022465,3]
[329494189,1718392282462,-1227.53,0.00022465,3]
[329494190,1718392282477,-500.0,0.00022739,3]
[329494191,1718392282494,-500.0,0.00023013,3]
[329494192,1718392282506,-1702.62994846,0.00023287,3]
[329494193,1718392282522,-473.28023069,0.00023287,3]
[329494194,1718392282540,-1917.30000001,0.00023287,3]
[329494195,1718392282555,-5800.73536382,0.00023287,3]
[329494196,1718392282583,-500.0,0.00023287,3]
[329494197,1718392282597,-828.44184715,0.00023287,3]
[329494198,1718392282611,-485.29815285,0.00023287,3]
[329494199,1718392282622,-1180.34,0.00023287,3]
[329494200,1718392282638,-1884.7,0.00023287,3]
[329494201,1718392282665,-500.0,0.00023287,3]
[329494202,1718392282676,-500.0,0.00023287,3]
[329494203,1718392282688,-560.23531856,0.00023287,3]
[329494204,1718392282703,-1654.000128,0.00023287,3]
[329494205,1718392282718,-3293.66788442,0.00023287,3]
[329494206,1718392282737,-4782.43666902,0.00023287,3]
[329494207,1718392282756,-780.32,0.00023287,3]
[329494208,1718392282769,-2886.54,0.00023287,3]
[329494209,1718392282784,-153.066773,0.00023287,7]
[329494210,1718392282802,-151.0,0.00023287,7]
[329494211,1718392282820,-2567.21,0.00023287,3]
[329494212,1718392282839,-530.79,0.00023287,3]
[329494213,1718392282856,-500.0,0.00023287,3]
[329494214,1718392282869,-500.0,0.00023287,3]
[329494215,1718392282880,-2042.91544391,0.00023287,3]
[329494216,1718392282894,-3896.60455609,0.00023287,3]
[329494217,1718392282905,-3956.31,0.00023287,3]
[329494218,1718392282920,-844.82,0.00023287,3]
[329494219,1718392282940,-726.23,0.00023287,3]
[329494220,1718392282950,-505.8,0.00023287,3]
[329494221,1718392282961,-151.0,0.00023287,7]
[329494222,1718392282972,-151.0,0.00023287,7]
[329494223,1718392282996,-58.90576391,0.00023287,3]
[329494224,1718392283014,-1068.61423609,0.00023287,3]
[329494225,1718392283033,-500.0,0.00023287,3]
[329494226,1718392283104,-151.0,0.00023287,7]